[Event "Late-Titled-Tuesday-Blitz-January-23-2024"]
[Site "Chess.com"]
[Date "2024.01.23"]
[Round "11"]
[White "DanylaBagrov"]
[Black "Kamilek84"]
[Result "1-0"]
[WhiteElo "2559"]
[BlackElo "2711"]
[TimeControl "180+1"]
[EndTime "16:03:59 PST"]
[Termination "DanylaBagrov won by resignation"]

1. d4 {[%clk 0:03:00.9]} 1... Nf6 {[%clk 0:02:56.9]} 2. Bf4 {[%clk 0:03:01.5]}
2... d5 {[%clk 0:02:53.9]} 3. e3 {[%clk 0:03:02]} 3... e6 {[%clk 0:02:48]} 4.
Nf3 {[%clk 0:03:01.6]} 4... Bd6 {[%clk 0:02:46.5]} 5. Bg3 {[%clk 0:03:01.7]}
5... O-O {[%clk 0:02:42.5]} 6. Nbd2 {[%clk 0:03:02.1]} 6... Ne4 {[%clk
0:02:41.9]} 7. Nxe4 {[%clk 0:02:57.3]} 7... dxe4 {[%clk 0:02:41.4]} 8. Nd2
{[%clk 0:02:58.2]} 8... f5 {[%clk 0:02:40.4]} 9. Bxd6 {[%clk 0:02:41.1]} 9...
cxd6 {[%clk 0:02:40.1]} 10. f3 {[%clk 0:02:40.7]} 10... d5 {[%clk 0:02:33.8]}
11. f4 {[%clk 0:02:35.6]} 11... g5 {[%clk 0:02:32.5]} 12. g3 {[%clk 0:02:32.1]}
12... gxf4 {[%clk 0:02:32.2]} 13. gxf4 {[%clk 0:02:16.8]} 13... Qh4+ {[%clk
0:02:30.4]} 14. Ke2 {[%clk 0:02:15.5]} 14... Bd7 {[%clk 0:02:30]} 15. Qe1 {[%clk
0:01:58.8]} 15... Qe7 {[%clk 0:02:29.5]} 16. Rg1+ {[%clk 0:01:54.9]} 16... Kh8
{[%clk 0:02:29.2]} 17. Qg3 {[%clk 0:01:45.5]} 17... Nc6 {[%clk 0:02:27.8]} 18.
Qg5 {[%clk 0:01:36.7]} 18... Qf7 {[%clk 0:02:26.6]} 19. Bh3 {[%clk 0:01:29.1]}
19... Rg8 {[%clk 0:02:23.8]} 20. Qh6 {[%clk 0:01:28.2]} 20... Rg6 {[%clk
0:02:11.6]} 21. Rxg6 {[%clk 0:01:25.5]} 21... Qxg6 {[%clk 0:02:12.5]} 22. Qh4
{[%clk 0:01:12.3]} 22... Rg8 {[%clk 0:02:09.9]} 23. c3 {[%clk 0:01:09.7]} 23...
Qg7 {[%clk 0:02:03.9]} 24. Kf2 {[%clk 0:01:08.4]} 24... Ne7 {[%clk 0:02:01.4]}
25. Rh1 {[%clk 0:00:40.6]} 25... Bb5 {[%clk 0:01:57]} 26. Nf1 {[%clk 0:00:30.5]}
26... Bxf1 {[%clk 0:01:54.1]} 27. Bxf1 {[%clk 0:00:27.6]} 27... Ng6 {[%clk
0:01:51.7]} 28. Qh5 {[%clk 0:00:25.8]} 28... b5 {[%clk 0:01:46.9]} 29. Rg1
{[%clk 0:00:18.9]} 29... b4 {[%clk 0:01:42]} 30. c4 {[%clk 0:00:12.7]} 30... b3
{[%clk 0:01:39]} 31. a3 {[%clk 0:00:11.9]} 31... Qc7 {[%clk 0:01:26.2]} 32. c5
{[%clk 0:00:10.8]} 32... Rg7 {[%clk 0:01:17.8]} 33. Qd1 {[%clk 0:00:07.2]} 33...
Nxf4 {[%clk 0:01:12.8]} 34. Rxg7 {[%clk 0:00:06.5]} 34... Kxg7 {[%clk 0:01:12]}
35. exf4 {[%clk 0:00:05.2]} 35... Qxf4+ {[%clk 0:01:11.9]} 36. Kg2 {[%clk
0:00:05.9]} 36... Qg5+ {[%clk 0:01:05.5]} 37. Kh1 {[%clk 0:00:05.6]} 37... f4
{[%clk 0:01:04.4]} 38. c6 {[%clk 0:00:06]} 38... f3 {[%clk 0:00:38.6]} 39. c7
{[%clk 0:00:05.9]} 39... f2 {[%clk 0:00:39.1]} 40. Bg2 {[%clk 0:00:04.8]} 40...
Qe3 {[%clk 0:00:39.7]} 41. Qf1 {[%clk 0:00:02.1]} 41... Qe1 {[%clk 0:00:31]} 42.
c8=Q {[%clk 0:00:02.2]} 42... e3 {[%clk 0:00:31.9]} 43. Qd7+ {[%clk 0:00:01.9]}
43... Kf6 {[%clk 0:00:32.4]} 44. Qd8+ {[%clk 0:00:01.8]} 44... Kf5 {[%clk
0:00:32.6]} 45. Qf8+ {[%clk 0:00:02.1]} 45... Kg6 {[%clk 0:00:33]} 46. Qf3
{[%clk 0:00:02]} 46... e2 {[%clk 0:00:31.8]} 47. Qxe2 {[%clk 0:00:02.4]} 47...
Qa5 {[%clk 0:00:21.5]} 48. Qexf2 {[%clk 0:00:02.7]} 48... Qd8 {[%clk 0:00:20.8]}
49. Qf6+ {[%clk 0:00:03.2]} 49... Qxf6 {[%clk 0:00:20.2]} 50. Qxf6+ {[%clk
0:00:03.2]} 50... Kxf6 {[%clk 0:00:21.1]} 51. Kg1 {[%clk 0:00:03.2]} 51... Kf5
{[%clk 0:00:20.9]} 52. Kf2 {[%clk 0:00:03.3]} 52... Kf4 {[%clk 0:00:21.8]} 53.
Bh3 {[%clk 0:00:03.3]} 53... e5 {[%clk 0:00:22.3]} 54. dxe5 {[%clk 0:00:03.4]}
54... Kxe5 {[%clk 0:00:23.2]} 55. Ke3 {[%clk 0:00:04]} 55... d4+ {[%clk
0:00:23.6]} 56. Kd3 {[%clk 0:00:04.7]} 56... Kf4 {[%clk 0:00:23.8]} 57. Kxd4
{[%clk 0:00:04.6]} 57... h5 {[%clk 0:00:24]} 58. Be6 {[%clk 0:00:05.2]} 58...
Kf3 {[%clk 0:00:24.9]} 59. Bxb3 {[%clk 0:00:05.9]} 59... Kg2 {[%clk 0:00:24.8]}
60. h4 {[%clk 0:00:03.9]} 60... Kg3 {[%clk 0:00:25.7]} 61. Bd1 {[%clk
0:00:04.1]} 61... Kxh4 {[%clk 0:00:26]} 62. Bxh5 {[%clk 0:00:04.8]} 62... Kg5
{[%clk 0:00:26.2]} 63. Be2 {[%clk 0:00:04.3]} 63... Kf4 {[%clk 0:00:26.5]} 64.
Kc5 {[%clk 0:00:05.2]} 64... Ke3 {[%clk 0:00:26.7]} 65. Bh5 {[%clk 0:00:05.4]}
65... Kd2 {[%clk 0:00:26.1]} 66. Kb4 {[%clk 0:00:05.4]} 66... Kc2 {[%clk
0:00:26.4]} 67. b3 {[%clk 0:00:05.6]} 67... Kb2 {[%clk 0:00:26.6]} 68. Bf7
{[%clk 0:00:05]} 68... Ka2 {[%clk 0:00:26.3]} 69. a4 {[%clk 0:00:05.6]} 69...
Ka1 {[%clk 0:00:25.6]} 70. Ka5 {[%clk 0:00:06.2]} 70... Ka2 {[%clk 0:00:25.6]}
71. Ka6 {[%clk 0:00:07.1]} 71... Ka3 {[%clk 0:00:25.7]} 72. Kxa7 {[%clk
0:00:08]} 72... Kb4 {[%clk 0:00:26.1]} 73. Kb6 {[%clk 0:00:08.6]} 73... Ka3
{[%clk 0:00:26.3]} 74. a5 {[%clk 0:00:09.5]} 74... Kb2 {[%clk 0:00:26.4]} 75. a6
{[%clk 0:00:10.4]} 75... Kc3 {[%clk 0:00:26.5]} 76. a7 {[%clk 0:00:11.3]} 76...
Kb4 {[%clk 0:00:26.9]} 77. a8=Q {[%clk 0:00:11]} 77... Kc3 {[%clk 0:00:27.3]}
78. Qc6+ {[%clk 0:00:11.1]} 1-0

[Event "Late-Titled-Tuesday-Blitz-January-23-2024"]
[Site "Chess.com"]
[Date "2024.01.23"]
[Round "11"]
[White "Byniolus"]
[Black "Vladimir_2020"]
[Result "1/2-1/2"]
[WhiteElo "2849"]
[BlackElo "2731"]
[TimeControl "180+1"]
[EndTime "16:04:02 PST"]
[Termination "Game drawn by repetition"]

1. d4 {[%clk 0:03:00.9]} 1... d5 {[%clk 0:02:59.2]} 2. Nf3 {[%clk 0:03:01]} 2...
Nf6 {[%clk 0:02:58.7]} 3. Bf4 {[%clk 0:03:01.3]} 3... e6 {[%clk 0:02:48.7]} 4.
e3 {[%clk 0:03:01.1]} 4... Bd6 {[%clk 0:02:48.9]} 5. Bg3 {[%clk 0:03:01.6]} 5...
c5 {[%clk 0:02:42]} 6. Nbd2 {[%clk 0:02:59.2]} 6... O-O {[%clk 0:02:37.1]} 7. c3
{[%clk 0:02:59.1]} 7... Qc7 {[%clk 0:02:36.2]} 8. Be2 {[%clk 0:02:59]} 8... Nbd7
{[%clk 0:02:35.4]} 9. c4 {[%clk 0:02:59.6]} 9... cxd4 {[%clk 0:02:12.1]} 10.
Nxd4 {[%clk 0:03:00.5]} 10... Bxg3 {[%clk 0:02:07.9]} 11. hxg3 {[%clk
0:03:01.4]} 11... dxc4 {[%clk 0:01:56.5]} 12. Nxc4 {[%clk 0:03:02.3]} 12... Nb6
{[%clk 0:01:56.5]} 13. Rc1 {[%clk 0:02:57.9]} 13... Nxc4 {[%clk 0:01:53.6]} 14.
Bxc4 {[%clk 0:02:58.8]} 14... Qa5+ {[%clk 0:01:52.1]} 15. Qd2 {[%clk 0:02:59.3]}
15... Qxd2+ {[%clk 0:01:50.9]} 16. Kxd2 {[%clk 0:03:00.2]} 16... Bd7 {[%clk
0:01:51]} 17. Bb5 {[%clk 0:02:52.5]} 17... e5 {[%clk 0:01:45.1]} 18. Bxd7 {[%clk
0:02:52.5]} 18... exd4 {[%clk 0:01:43.6]} 19. Bh3 {[%clk 0:02:38.5]} 19... Ne4+
{[%clk 0:01:26]} 20. Ke2 {[%clk 0:02:29.2]} 20... dxe3 {[%clk 0:01:25.8]} 21.
Kxe3 {[%clk 0:02:24.6]} 21... Rfe8 {[%clk 0:01:25.9]} 22. Kf3 {[%clk 0:02:17]}
22... Nd2+ {[%clk 0:01:23.5]} 23. Kg4 {[%clk 0:02:15.6]} 23... Re4+ {[%clk
0:01:11.5]} 24. f4 {[%clk 0:02:10.9]} 24... g6 {[%clk 0:01:06.7]} 25. Rhe1
{[%clk 0:01:45.7]} 25... Rae8 {[%clk 0:00:51.7]} 26. Rxe4 {[%clk 0:01:44.1]}
26... Rxe4 {[%clk 0:00:51.7]} 27. Rc2 {[%clk 0:01:20.3]} 27... Rd4 {[%clk
0:00:48.6]} 28. Kh4 {[%clk 0:01:04.6]} 28... Kg7 {[%clk 0:00:43.4]} 29. Bc8
{[%clk 0:01:01.3]} 29... b6 {[%clk 0:00:39.9]} 30. b3 {[%clk 0:00:49.7]} 30...
Ne4 {[%clk 0:00:33.9]} 31. Bb7 {[%clk 0:00:44.3]} 31... Nd6 {[%clk 0:00:28.9]}
32. Bf3 {[%clk 0:00:42.9]} 32... Nf5+ {[%clk 0:00:21.9]} 33. Kh3 {[%clk
0:00:42.9]} 33... h5 {[%clk 0:00:19.5]} 34. Rc7 {[%clk 0:00:38.4]} 34... a5
{[%clk 0:00:18.9]} 35. Rb7 {[%clk 0:00:37.9]} 35... Rd6 {[%clk 0:00:17.7]} 36.
g4 {[%clk 0:00:24]} 36... hxg4+ {[%clk 0:00:14.6]} 37. Bxg4 {[%clk 0:00:24.9]}
37... Ne3 {[%clk 0:00:13.5]} 38. Bf3 {[%clk 0:00:22.1]} 38... Nc2 {[%clk
0:00:13.4]} 39. Be2 {[%clk 0:00:18.9]} 39... Ne3 {[%clk 0:00:10.2]} 40. Kg3
{[%clk 0:00:16.8]} 40... Kf6 {[%clk 0:00:09]} 41. Kf2 {[%clk 0:00:16.4]} 41...
Nd5 {[%clk 0:00:07.7]} 42. Bc4 {[%clk 0:00:14.9]} 42... Nxf4 {[%clk 0:00:07.5]}
43. Rxf7+ {[%clk 0:00:14.3]} 43... Ke5 {[%clk 0:00:07.7]} 44. Kf3 {[%clk
0:00:10.4]} 44... Nd5 {[%clk 0:00:07.9]} 45. Kg4 {[%clk 0:00:07.2]} 45... Nc3
{[%clk 0:00:07]} 46. a4 {[%clk 0:00:06.5]} 46... Ne4 {[%clk 0:00:06.6]} 47. Rf3
{[%clk 0:00:03.4]} 47... Nf6+ {[%clk 0:00:06.1]} 48. Kg5 {[%clk 0:00:03.5]}
48... Ne4+ {[%clk 0:00:06.3]} 49. Kg4 {[%clk 0:00:03.8]} 49... Nd2 {[%clk
0:00:06.5]} 50. Re3+ {[%clk 0:00:03.3]} 50... Kf6 {[%clk 0:00:06.1]} 51. Kg3
{[%clk 0:00:02.5]} 51... Nxc4 {[%clk 0:00:06.2]} 52. bxc4 {[%clk 0:00:02.9]}
52... Rd4 {[%clk 0:00:06.1]} 53. Rb3 {[%clk 0:00:03.3]} 53... Rd6 {[%clk
0:00:06.3]} 54. Rb5 {[%clk 0:00:03.2]} 54... Rc6 {[%clk 0:00:06.6]} 55. Kh3
{[%clk 0:00:03]} 55... Rxc4 {[%clk 0:00:06.8]} 56. Rxb6+ {[%clk 0:00:03.2]}
56... Kg7 {[%clk 0:00:07.5]} 57. Ra6 {[%clk 0:00:03.2]} 57... Rxa4 {[%clk
0:00:07.7]} 58. g4 {[%clk 0:00:03.5]} 58... Kh6 {[%clk 0:00:07.6]} 59. Kh4
{[%clk 0:00:03.5]} 59... Ra1 {[%clk 0:00:03.8]} 60. g5+ {[%clk 0:00:03.8]} 60...
Kg7 {[%clk 0:00:04.2]} 61. Ra7+ {[%clk 0:00:04.7]} 61... Kg8 {[%clk 0:00:04.6]}
62. Kg4 {[%clk 0:00:04.7]} 62... a4 {[%clk 0:00:04.5]} 63. Kg3 {[%clk
0:00:03.9]} 63... a3 {[%clk 0:00:04.5]} 64. Kg2 {[%clk 0:00:04.5]} 64... Kf8
{[%clk 0:00:05]} 65. Ra6 {[%clk 0:00:03.9]} 65... Kf7 {[%clk 0:00:05.1]} 66. Kh2
{[%clk 0:00:04.5]} 66... Kg7 {[%clk 0:00:05]} 67. Kg2 {[%clk 0:00:04.9]} 67...
Kf7 {[%clk 0:00:05.4]} 68. Kh2 {[%clk 0:00:05.4]} 68... Ra2+ {[%clk 0:00:05.8]}
69. Kg3 {[%clk 0:00:05.3]} 69... Ra1 {[%clk 0:00:06.1]} 70. Kg2 {[%clk
0:00:06.2]} 70... Ra2+ {[%clk 0:00:06.3]} 71. Kg3 {[%clk 0:00:06.2]} 71... Ra1
{[%clk 0:00:06.7]} 72. Kg2 {[%clk 0:00:06.6]} 72... Ra2+ {[%clk 0:00:07]} 73.
Kg3 {[%clk 0:00:07.1]} 1/2-1/2

[Event "Late-Titled-Tuesday-Blitz-January-23-2024"]
[Site "Chess.com"]
[Date "2024.01.23"]
[Round "11"]
[White "IlanSchnaider"]
[Black "rasmussvane"]
[Result "0-1"]
[WhiteElo "2759"]
[BlackElo "2975"]
[TimeControl "180+1"]
[EndTime "16:04:13 PST"]
[Termination "rasmussvane won on time"]

1. e4 {[%clk 0:03:00.9]} 1... c6 {[%clk 0:02:55.4]} 2. Nc3 {[%clk 0:03:00]} 2...
d5 {[%clk 0:02:56.3]} 3. Nf3 {[%clk 0:03:00.7]} 3... dxe4 {[%clk 0:02:56.4]} 4.
Nxe4 {[%clk 0:03:01.6]} 4... Nf6 {[%clk 0:02:57]} 5. Qe2 {[%clk 0:03:02.2]} 5...
Nxe4 {[%clk 0:02:56]} 6. Qxe4 {[%clk 0:03:03.1]} 6... Qa5 {[%clk 0:02:56.3]} 7.
Bc4 {[%clk 0:03:01.5]} 7... Bf5 {[%clk 0:02:55.7]} 8. Qf4 {[%clk 0:03:02]} 8...
e6 {[%clk 0:02:55.1]} 9. O-O {[%clk 0:02:59.2]} 9... Be7 {[%clk 0:02:52.1]} 10.
d3 {[%clk 0:02:44.5]} 10... O-O {[%clk 0:02:49.2]} 11. Bd2 {[%clk 0:02:42.4]}
11... Qd8 {[%clk 0:02:48.4]} 12. Bc3 {[%clk 0:02:40.4]} 12... Nd7 {[%clk
0:02:46.1]} 13. Rfe1 {[%clk 0:02:33]} 13... Re8 {[%clk 0:02:43.7]} 14. Nd4
{[%clk 0:02:13.8]} 14... Bg5 {[%clk 0:02:22.2]} 15. Qg3 {[%clk 0:02:06.9]} 15...
Bg6 {[%clk 0:02:12.4]} 16. Nf3 {[%clk 0:01:47.6]} 16... Bf6 {[%clk 0:02:09.4]}
17. Ne5 {[%clk 0:01:40.1]} 17... Nxe5 {[%clk 0:02:06.3]} 18. Bxe5 {[%clk
0:01:41]} 18... Bxe5 {[%clk 0:02:07]} 19. Qxe5 {[%clk 0:01:41.1]} 19... Rc8
{[%clk 0:01:56.9]} 20. a4 {[%clk 0:01:38.9]} 20... b6 {[%clk 0:01:51.1]} 21. Qe3
{[%clk 0:01:05.5]} 21... Qc7 {[%clk 0:01:49.3]} 22. h4 {[%clk 0:00:56]} 22... h6
{[%clk 0:01:48.8]} 23. Qf3 {[%clk 0:00:48]} 23... Rcd8 {[%clk 0:01:47.8]} 24.
Re3 {[%clk 0:00:42.9]} 24... Rd4 {[%clk 0:01:45]} 25. h5 {[%clk 0:00:40.3]}
25... Rf4 {[%clk 0:01:23]} 26. Qh3 {[%clk 0:00:28.8]} 26... Bf5 {[%clk
0:01:20.6]} 27. Qg3 {[%clk 0:00:29.1]} 27... Rc8 {[%clk 0:01:11.2]} 28. Rae1
{[%clk 0:00:15.7]} 28... Rd4 {[%clk 0:00:54]} 29. Qxc7 {[%clk 0:00:09.8]} 29...
Rxc7 {[%clk 0:00:54.9]} 30. f3 {[%clk 0:00:08.9]} 30... Kf8 {[%clk 0:00:52.7]}
31. g4 {[%clk 0:00:07.7]} 31... Bh7 {[%clk 0:00:52.7]} 32. Kf2 {[%clk
0:00:06.8]} 32... b5 {[%clk 0:00:46.9]} 33. Bb3 {[%clk 0:00:02]} 33... bxa4
{[%clk 0:00:42.6]} 34. Bc4 {[%clk 0:00:02.5]} 34... Rb7 {[%clk 0:00:42.8]} 35.
Ra1 {[%clk 0:00:01.5]} 35... Rxb2 {[%clk 0:00:40.8]} 36. Re2 {[%clk 0:00:02.1]}
36... Rb4 {[%clk 0:00:11.7]} 37. c3 {[%clk 0:00:02.2]} 37... Rdxc4 {[%clk
0:00:08.1]} 38. dxc4 {[%clk 0:00:02.9]} 38... Rxc4 {[%clk 0:00:09]} 39. Rea2
{[%clk 0:00:03.2]} 39... Rxc3 {[%clk 0:00:07.6]} 40. Rxa4 {[%clk 0:00:03.7]}
40... g6 {[%clk 0:00:05.2]} 41. hxg6 {[%clk 0:00:03.5]} 41... Bxg6 {[%clk
0:00:05.5]} 42. Rxa7 {[%clk 0:00:04.3]} 42... h5 {[%clk 0:00:05.1]} 43. Rc7
{[%clk 0:00:02.1]} 43... hxg4 {[%clk 0:00:05]} 44. fxg4 {[%clk 0:00:03]} 44...
Kg7 {[%clk 0:00:04.8]} 45. Ra6 {[%clk 0:00:02.6]} 45... Be4 {[%clk 0:00:04.9]}
46. Raa7 {[%clk 0:00:03]} 46... Rf3+ {[%clk 0:00:05.1]} 47. Ke2 {[%clk 0:00:03]}
47... Kg6 {[%clk 0:00:04.6]} 48. Rc8 {[%clk 0:00:02.9]} 48... Bd5 {[%clk
0:00:03.7]} 49. Rg8+ {[%clk 0:00:02.6]} 49... Kf6 {[%clk 0:00:04.2]} 50. Rf8
{[%clk 0:00:03.3]} 50... Kg7 {[%clk 0:00:04.8]} 51. Rc8 {[%clk 0:00:03.2]} 51...
Rf4 {[%clk 0:00:05.2]} 52. Rcc7 {[%clk 0:00:03.6]} 52... Kg6 {[%clk 0:00:05.8]}
53. Ke3 {[%clk 0:00:02.6]} 53... Re4+ {[%clk 0:00:05.3]} 54. Kd3 {[%clk
0:00:03.2]} 54... Rf4 {[%clk 0:00:05.1]} 55. Ke3 {[%clk 0:00:03.8]} 55... Rf3+
{[%clk 0:00:05.2]} 56. Ke2 {[%clk 0:00:04.3]} 56... e5 {[%clk 0:00:04.4]} 57.
Rd7 {[%clk 0:00:04.4]} 57... e4 {[%clk 0:00:04.4]} 58. Rd6+ {[%clk 0:00:05]}
58... Kg5 {[%clk 0:00:04.8]} 59. Ra8 {[%clk 0:00:02.7]} 59... Kxg4 {[%clk
0:00:02.4]} 60. Rg8+ {[%clk 0:00:03.3]} 60... Kf5 {[%clk 0:00:02.9]} 61. Rf8
{[%clk 0:00:03.4]} 61... Ke5 {[%clk 0:00:03.3]} 62. Rdd8 {[%clk 0:00:03.7]}
62... Kd4 {[%clk 0:00:03.1]} 63. Rd7 {[%clk 0:00:02.6]} 63... f5 {[%clk
0:00:03.3]} 64. Rd6 {[%clk 0:00:01.8]} 64... f4 {[%clk 0:00:02.6]} 65. Rdf6
{[%clk 0:00:02.2]} 65... Re3+ {[%clk 0:00:03]} 66. Kd2 {[%clk 0:00:02.3]} 66...
f3 {[%clk 0:00:03.6]} 67. Rf4 {[%clk 0:00:01.6]} 67... Re2+ {[%clk 0:00:04]} 68.
Kd1 {[%clk 0:00:02.2]} 68... Rh2 {[%clk 0:00:03.3]} 69. Rd8 {[%clk 0:00:01.4]}
69... Kd3 {[%clk 0:00:03.6]} 70. Kc1 {[%clk 0:00:01.3]} 70... Rh1+ {[%clk
0:00:03.6]} 71. Kb2 {[%clk 0:00:01.7]} 71... Ke3 {[%clk 0:00:03.7]} 72. Rf6
{[%clk 0:00:01.8]} 72... Ke2 {[%clk 0:00:03.5]} 73. Re8 {[%clk 0:00:01.3]} 73...
e3 {[%clk 0:00:03.5]} 0-1

[Event "Late-Titled-Tuesday-Blitz-January-23-2024"]
[Site "Chess.com"]
[Date "2024.01.23"]
[Round "11"]
[White "Revan_2002"]
[Black "Flameboard08"]
[Result "0-1"]
[WhiteElo "2463"]
[BlackElo "2561"]
[TimeControl "180+1"]
[EndTime "16:04:31 PST"]
[Termination "Flameboard08 won by checkmate"]

1. b3 {[%clk 0:02:59.1]} 1... b6 {[%clk 0:02:48.6]} 2. Bb2 {[%clk 0:03:00]} 2...
Bb7 {[%clk 0:02:48.7]} 3. e3 {[%clk 0:03:00.6]} 3... Nf6 {[%clk 0:02:49]} 4. Nf3
{[%clk 0:03:01.1]} 4... e6 {[%clk 0:02:49.6]} 5. Be2 {[%clk 0:03:01.8]} 5... c5
{[%clk 0:02:49.9]} 6. O-O {[%clk 0:03:02.6]} 6... d6 {[%clk 0:02:50]} 7. d4
{[%clk 0:03:03.3]} 7... Nbd7 {[%clk 0:02:50.5]} 8. c4 {[%clk 0:03:04]} 8... Be7
{[%clk 0:02:50.6]} 9. Nbd2 {[%clk 0:03:04.7]} 9... O-O {[%clk 0:02:50.7]} 10. a3
{[%clk 0:03:05.4]} 10... a5 {[%clk 0:02:51]} 11. Rc1 {[%clk 0:03:06]} 11... a4
{[%clk 0:02:50.7]} 12. bxa4 {[%clk 0:03:05.1]} 12... Bc6 {[%clk 0:02:51]} 13.
Bd3 {[%clk 0:03:05.3]} 13... Bxa4 {[%clk 0:02:51.3]} 14. Qe2 {[%clk 0:03:06.1]}
14... d5 {[%clk 0:02:50.1]} 15. e4 {[%clk 0:03:04.9]} 15... cxd4 {[%clk
0:02:50.5]} 16. e5 {[%clk 0:03:03.7]} 16... Nh5 {[%clk 0:02:47.8]} 17. cxd5
{[%clk 0:03:02.5]} 17... Nf4 {[%clk 0:02:48.3]} 18. Bxh7+ {[%clk 0:03:02.1]}
18... Kxh7 {[%clk 0:02:48.4]} 19. Qe4+ {[%clk 0:03:02.1]} 19... Ng6 {[%clk
0:02:49.1]} 20. d6 {[%clk 0:03:00.4]} 20... Bg5 {[%clk 0:02:43.6]} 21. Bxd4
{[%clk 0:02:52.2]} 21... Bh6 {[%clk 0:02:30.5]} 22. h4 {[%clk 0:02:51]} 22...
Bxd2 {[%clk 0:02:27.3]} 23. Nxd2 {[%clk 0:02:50.6]} 23... Qxh4 {[%clk 0:02:27]}
24. f4 {[%clk 0:02:50.9]} 24... Rfc8 {[%clk 0:02:19.2]} 25. Be3 {[%clk
0:02:27.4]} 25... Qg4 {[%clk 0:02:09.1]} 26. Rxc8 {[%clk 0:02:24.6]} 26... Rxc8
{[%clk 0:02:07.5]} 27. Qxa4 {[%clk 0:02:25.3]} 27... Ndxe5 {[%clk 0:02:05.8]}
28. Qa6 {[%clk 0:02:18.1]} 28... Rc3 {[%clk 0:01:59.8]} 29. Qxb6 {[%clk
0:01:44.1]} 29... Nd7 {[%clk 0:01:48.7]} 30. Qd4 {[%clk 0:01:39.1]} 30... Rxa3
{[%clk 0:01:48.7]} 31. f5 {[%clk 0:01:30.8]} 31... exf5 {[%clk 0:01:46.6]} 32.
Qxg4 {[%clk 0:01:30.1]} 32... fxg4 {[%clk 0:01:47.5]} 33. Rxf7 {[%clk
0:01:30.3]} 33... Nge5 {[%clk 0:01:45.3]} 34. Rxd7 {[%clk 0:01:19.1]} 34... Nxd7
{[%clk 0:01:43.6]} 35. Bf4 {[%clk 0:01:18.5]} 35... Rd3 {[%clk 0:01:34.6]} 36.
Ne4 {[%clk 0:01:09.5]} 36... Rd4 {[%clk 0:01:31.3]} 37. Ng5+ {[%clk 0:01:09.1]}
37... Kg6 {[%clk 0:01:30.8]} 38. g3 {[%clk 0:01:09.8]} 38... Kf5 {[%clk
0:01:28.9]} 39. Nf7 {[%clk 0:01:01.7]} 39... Ra4 {[%clk 0:01:16.9]} 40. Kf2
{[%clk 0:01:01.7]} 40... Ke4 {[%clk 0:01:10.5]} 41. Ng5+ {[%clk 0:01:01.1]}
41... Kd3 {[%clk 0:01:09.6]} 42. Nf7 {[%clk 0:00:59.5]} 42... Ra2+ {[%clk
0:01:09]} 43. Ke1 {[%clk 0:00:59.1]} 43... Re2+ {[%clk 0:01:05.9]} 44. Kf1
{[%clk 0:00:58.7]} 44... Re6 {[%clk 0:00:51.9]} 45. Ng5 {[%clk 0:00:58.7]} 45...
Rg6 {[%clk 0:00:48.6]} 46. Nf7 {[%clk 0:00:55.5]} 46... Kd4 {[%clk 0:00:46.8]}
47. Ke2 {[%clk 0:00:54.4]} 47... Rf6 {[%clk 0:00:39.1]} 48. Ng5 {[%clk
0:00:53.2]} 48... Kd5 {[%clk 0:00:36.6]} 49. Ke3 {[%clk 0:00:51.9]} 49... Rf8
{[%clk 0:00:34.8]} 50. Nh7 {[%clk 0:00:46.9]} 50... Re8+ {[%clk 0:00:30.1]} 51.
Kf2 {[%clk 0:00:46.5]} 51... Nc5 {[%clk 0:00:30.3]} 52. Kg2 {[%clk 0:00:43.3]}
52... Re2+ {[%clk 0:00:27]} 53. Kf1 {[%clk 0:00:43.2]} 53... Rh2 {[%clk
0:00:25.8]} 54. Nf8 {[%clk 0:00:40.5]} 54... Kc6 {[%clk 0:00:15.8]} 55. Ng6
{[%clk 0:00:40.9]} 55... Rh5 {[%clk 0:00:03.3]} 56. Ke2 {[%clk 0:00:30.8]} 56...
Nd7 {[%clk 0:00:03.4]} 57. Ke3 {[%clk 0:00:26.8]} 57... Kd5 {[%clk 0:00:03.9]}
58. Kd3 {[%clk 0:00:16.8]} 58... Ke6 {[%clk 0:00:03]} 59. Ke4 {[%clk 0:00:16.5]}
59... Ra5 {[%clk 0:00:02.9]} 60. Kd4 {[%clk 0:00:13.6]} 60... Ra4+ {[%clk
0:00:02.9]} 61. Ke3 {[%clk 0:00:13.3]} 61... Nf6 {[%clk 0:00:02.7]} 62. Nf8+
{[%clk 0:00:10.9]} 62... Kf7 {[%clk 0:00:03]} 63. d7 {[%clk 0:00:11.2]} 63...
Ra8 {[%clk 0:00:02.2]} 64. Bc7 {[%clk 0:00:09.3]} 64... Nd5+ {[%clk 0:00:01.7]}
65. Kd4 {[%clk 0:00:04.5]} 65... Nxc7 {[%clk 0:00:02.6]} 66. Kc5 {[%clk
0:00:05.2]} 66... Kxf8 {[%clk 0:00:02.4]} 67. Kc6 {[%clk 0:00:06.1]} 67... Ne6
{[%clk 0:00:02.1]} 68. Kb7 {[%clk 0:00:06.5]} 68... Rd8 {[%clk 0:00:02.1]} 69.
Kc6 {[%clk 0:00:07.4]} 69... Ke7 {[%clk 0:00:03]} 70. Kd5 {[%clk 0:00:08.3]}
70... Rxd7+ {[%clk 0:00:03.6]} 71. Ke5 {[%clk 0:00:09.2]} 71... Rb7 {[%clk
0:00:04.2]} 72. Kf5 {[%clk 0:00:09.5]} 72... Rb5+ {[%clk 0:00:04.5]} 73. Kg6
{[%clk 0:00:10.4]} 73... Kd6 {[%clk 0:00:04]} 74. Kf7 {[%clk 0:00:10.6]} 74...
Rb3 {[%clk 0:00:04.9]} 75. Kg6 {[%clk 0:00:11.1]} 75... Rxg3 {[%clk 0:00:05.5]}
76. Kf5 {[%clk 0:00:11.9]} 76... Rb3 {[%clk 0:00:06]} 77. Ke4 {[%clk 0:00:12.8]}
77... g3 {[%clk 0:00:05.5]} 78. Kf5 {[%clk 0:00:13.7]} 78... g2 {[%clk 0:00:06]}
79. Kg6 {[%clk 0:00:13.9]} 79... g1=Q+ {[%clk 0:00:06.1]} 80. Kh7 {[%clk
0:00:14.8]} 80... Qh2+ {[%clk 0:00:06.2]} 81. Kg8 {[%clk 0:00:15.7]} 81... Rb8+
{[%clk 0:00:06.3]} 82. Kf7 {[%clk 0:00:16.2]} 82... Qf4+ {[%clk 0:00:06.9]} 83.
Kg6 {[%clk 0:00:16.5]} 83... Qf6+ {[%clk 0:00:07.4]} 84. Kh5 {[%clk 0:00:16.5]}
84... Qg5# {[%clk 0:00:08]} 0-1